[Event "Late-Titled-Tuesday-Blitz-November-28-2023"]
[Site "Chess.com"]
[Date "2023.11.28"]
[Round "7"]
[White "Mikhal867"]
[Black "VladimirBugayev"]
[Result "1-0"]
[WhiteElo "2415"]
[BlackElo "2315"]
[TimeControl "180+1"]
[EndTime "15:11:14 PST"]
[Termination "Mikhal867 won by resignation"]

1. d4 {[%clk 0:02:58.4]} 1... Nf6 {[%clk 0:02:59.4]} 2. c4 {[%clk 0:02:57.6]}
2... c5 {[%clk 0:02:59.5]} 3. d5 {[%clk 0:02:57.3]} 3... b5 {[%clk 0:03:00.2]}
4. Nf3 {[%clk 0:02:56.3]} 4... b4 {[%clk 0:02:57.2]} 5. a4 {[%clk 0:02:51.4]}
5... d6 {[%clk 0:02:54.2]} 6. b3 {[%clk 0:02:51.2]} 6... g6 {[%clk 0:02:54.7]}
7. Bb2 {[%clk 0:02:50.8]} 7... Bg7 {[%clk 0:02:55.4]} 8. e4 {[%clk 0:02:49]}
8... O-O {[%clk 0:02:55.1]} 9. Bd3 {[%clk 0:02:47.7]} 9... e5 {[%clk 0:02:46.4]}
10. dxe6 {[%clk 0:02:34]} 10... Bxe6 {[%clk 0:02:45.9]} 11. O-O {[%clk
0:02:33.5]} 11... Nc6 {[%clk 0:02:45]} 12. Bc2 {[%clk 0:02:29.5]} 12... Qc7
{[%clk 0:02:44.4]} 13. Qc1 {[%clk 0:02:14.8]} 13... Ne5 {[%clk 0:02:30.3]} 14.
Ng5 {[%clk 0:02:09.7]} 14... Nfd7 {[%clk 0:02:16.7]} 15. f4 {[%clk 0:02:05.6]}
15... Ng4 {[%clk 0:01:52.2]} 16. Bxg7 {[%clk 0:01:54.4]} 16... Kxg7 {[%clk
0:01:51.9]} 17. f5 {[%clk 0:01:54.6]} 17... d5 {[%clk 0:01:51.6]} 18. Qf4 {[%clk
0:01:46.2]} 18... Bxf5 {[%clk 0:01:38.3]} 19. Qxc7 {[%clk 0:01:43.6]} 1-0

[Event "Late-Titled-Tuesday-Blitz-November-28-2023"]
[Site "Chess.com"]
[Date "2023.11.28"]
[Round "7"]
[White "maurovargas01"]
[Black "CraiggoryC"]
[Result "0-1"]
[WhiteElo "1834"]
[BlackElo "2187"]
[TimeControl "180+1"]
[EndTime "15:11:24 PST"]
[Termination "CraiggoryC won by checkmate"]

1. e4 {[%clk 0:02:29]} 1... e6 {[%clk 0:02:06.4]} 2. f4 {[%clk 0:02:28]} 2... d5
{[%clk 0:02:06]} 3. e5 {[%clk 0:02:28.2]} 3... c5 {[%clk 0:02:06.3]} 4. Nf3
{[%clk 0:02:29.1]} 4... Nc6 {[%clk 0:02:06.2]} 5. Bb5 {[%clk 0:02:29.3]} 5...
Bd7 {[%clk 0:02:05.6]} 6. Bxc6 {[%clk 0:02:30.2]} 6... Bxc6 {[%clk 0:02:05.3]}
7. O-O {[%clk 0:02:31.1]} 7... Nh6 {[%clk 0:02:05.6]} 8. d3 {[%clk 0:02:31.5]}
8... Be7 {[%clk 0:02:04.2]} 9. h3 {[%clk 0:02:32]} 9... Nf5 {[%clk 0:02:03.1]}
10. g4 {[%clk 0:02:32]} 10... Nh4 {[%clk 0:02:02.3]} 11. Nh2 {[%clk 0:02:30.8]}
11... O-O {[%clk 0:02:00.5]} 12. Be3 {[%clk 0:02:29.3]} 12... d4 {[%clk
0:01:55.5]} 13. Bf2 {[%clk 0:02:28.1]} 13... Qd5 {[%clk 0:01:54.5]} 14. Nf3
{[%clk 0:01:49.4]} 14... Nxf3+ {[%clk 0:01:51.3]} 15. Kg2 {[%clk 0:01:39.6]}
15... Nh4+ {[%clk 0:01:43.3]} 16. Kg3 {[%clk 0:01:31.7]} 16... Qg2# {[%clk
0:01:37.4]} 0-1

[Event "Late-Titled-Tuesday-Blitz-November-28-2023"]
[Site "Chess.com"]
[Date "2023.11.28"]
[Round "7"]
[White "expii"]
[Black "The_Princess_Moon"]
[Result "0-1"]
[WhiteElo "2231"]
[BlackElo "2384"]
[TimeControl "180+1"]
[EndTime "15:11:40 PST"]
[Termination "The_Princess_Moon won by resignation"]

1. e4 {[%clk 0:03:00.9]} 1... c5 {[%clk 0:03:00.9]} 2. Nf3 {[%clk 0:02:56.9]}
2... a6 {[%clk 0:03:01.8]} 3. d4 {[%clk 0:02:57.2]} 3... cxd4 {[%clk 0:03:02.7]}
4. Nxd4 {[%clk 0:02:57.8]} 4... Nf6 {[%clk 0:03:01.8]} 5. Nc3 {[%clk 0:02:58]}
5... e5 {[%clk 0:03:01.1]} 6. Nde2 {[%clk 0:02:57.1]} 6... Bc5 {[%clk
0:03:00.6]} 7. h3 {[%clk 0:02:54.6]} 7... Qb6 {[%clk 0:02:59.8]} 8. Be3 {[%clk
0:02:45.1]} 8... Bxe3 {[%clk 0:02:54.8]} 9. fxe3 {[%clk 0:02:46]} 9... Qxe3
{[%clk 0:02:54.1]} 10. Qd3 {[%clk 0:02:46.6]} 10... Qb6 {[%clk 0:02:48.7]} 11.
b3 {[%clk 0:02:33.7]} 11... O-O {[%clk 0:02:46.2]} 12. Ng3 {[%clk 0:02:23.2]}
12... Nc6 {[%clk 0:02:39.5]} 13. Nf5 {[%clk 0:01:25.3]} 13... Nb4 {[%clk
0:02:33.7]} 14. Qd1 {[%clk 0:01:21.2]} 14... d5 {[%clk 0:02:25.4]} 15. Ne7+
{[%clk 0:01:14.4]} 15... Kh8 {[%clk 0:02:24.5]} 16. Nexd5 {[%clk 0:01:15.3]}
16... Nfxd5 {[%clk 0:02:23.1]} 17. Nxd5 {[%clk 0:01:16.2]} 17... Nxd5 {[%clk
0:02:22.1]} 18. Qxd5 {[%clk 0:01:17.1]} 18... Qe3+ {[%clk 0:02:19.7]} 19. Be2
{[%clk 0:01:17.5]} 19... Qg3+ {[%clk 0:02:19.4]} 20. Kf1 {[%clk 0:01:16.5]}
20... Be6 {[%clk 0:02:18]} 21. Qc5 {[%clk 0:01:15.4]} 21... Rac8 {[%clk
0:02:13.8]} 22. Qb4 {[%clk 0:01:15.9]} 22... f5 {[%clk 0:02:03.6]} 0-1

[Event "Late-Titled-Tuesday-Blitz-November-28-2023"]
[Site "Chess.com"]
[Date "2023.11.28"]
[Round "7"]
[White "LUISMIGUELOV"]
[Black "Brahianzevich"]
[Result "1-0"]
[WhiteElo "2198"]
[BlackElo "2414"]
[TimeControl "180+1"]
[EndTime "15:12:12 PST"]
[Termination "LUISMIGUELOV won by resignation"]

1. e4 {[%clk 0:03:00.9]} 1... c5 {[%clk 0:02:57.3]} 2. d4 {[%clk 0:02:58.8]}
2... cxd4 {[%clk 0:02:57.4]} 3. c3 {[%clk 0:02:59.3]} 3... Nf6 {[%clk
0:02:56.7]} 4. e5 {[%clk 0:02:58.4]} 4... Nd5 {[%clk 0:02:53.5]} 5. cxd4 {[%clk
0:02:58.8]} 5... e6 {[%clk 0:02:53.2]} 6. Bc4 {[%clk 0:02:56.6]} 6... d6 {[%clk
0:02:48.7]} 7. Nf3 {[%clk 0:02:53.9]} 7... Nc6 {[%clk 0:02:10.6]} 8. Bxd5 {[%clk
0:02:49.1]} 8... exd5 {[%clk 0:02:09.8]} 9. Nc3 {[%clk 0:02:49]} 9... Be6 {[%clk
0:02:10]} 10. Bf4 {[%clk 0:02:42.8]} 10... dxe5 {[%clk 0:02:06.9]} 11. Nxe5
{[%clk 0:02:42.4]} 11... Nxe5 {[%clk 0:02:01.8]} 12. Bxe5 {[%clk 0:02:37.3]}
12... Bb4 {[%clk 0:02:01.9]} 13. O-O {[%clk 0:02:36.2]} 13... O-O {[%clk
0:02:01.7]} 14. Qf3 {[%clk 0:02:30.1]} 14... Rc8 {[%clk 0:01:59.2]} 15. Qg3
{[%clk 0:02:16.8]} 15... f6 {[%clk 0:01:56]} 16. Bf4 {[%clk 0:02:15.8]} 16...
Bxc3 {[%clk 0:01:47.3]} 17. bxc3 {[%clk 0:02:14.8]} 17... Qd7 {[%clk 0:01:43.4]}
18. Rfe1 {[%clk 0:02:13.7]} 18... Rc4 {[%clk 0:01:36.4]} 19. Bh6 {[%clk
0:02:12]} 19... Bf5 {[%clk 0:01:23.9]} 20. Re3 {[%clk 0:02:10.1]} 20... Kh8
{[%clk 0:01:20.5]} 21. Rae1 {[%clk 0:01:54.3]} 21... Rc7 {[%clk 0:01:00.6]} 22.
Bf4 {[%clk 0:01:45.1]} 22... Bg6 {[%clk 0:00:52.5]} 23. Bxc7 {[%clk 0:01:42.5]}
1-0

[Event "Late-Titled-Tuesday-Blitz-November-28-2023"]
[Site "Chess.com"]
[Date "2023.11.28"]
[Round "7"]
[White "gabduschew"]
[Black "ahkashefi2800"]
[Result "0-1"]
[WhiteElo "2439"]
[BlackElo "2568"]
[TimeControl "180+1"]
[EndTime "15:12:15 PST"]
[Termination "ahkashefi2800 won by resignation"]

1. b3 {[%clk 0:02:59]} 1... d5 {[%clk 0:03:00.1]} 2. Bb2 {[%clk 0:02:58.5]} 2...
c6 {[%clk 0:03:01]} 3. e3 {[%clk 0:02:57.9]} 3... Nf6 {[%clk 0:03:01.5]} 4. f4
{[%clk 0:02:57.3]} 4... Bg4 {[%clk 0:03:01.7]} 5. Nf3 {[%clk 0:02:56.4]} 5...
Nbd7 {[%clk 0:03:01.5]} 6. Be2 {[%clk 0:02:55.7]} 6... g6 {[%clk 0:03:01.4]} 7.
h3 {[%clk 0:02:52.6]} 7... Bxf3 {[%clk 0:03:01.4]} 8. Bxf3 {[%clk 0:02:52.4]}
8... Bg7 {[%clk 0:03:02.3]} 9. d4 {[%clk 0:02:45.8]} 9... O-O {[%clk 0:03:00.5]}
10. Nd2 {[%clk 0:02:45.1]} 10... a5 {[%clk 0:02:58.9]} 11. a4 {[%clk 0:02:40]}
11... e6 {[%clk 0:02:57.6]} 12. O-O {[%clk 0:02:38.1]} 12... Rc8 {[%clk
0:02:56.5]} 13. e4 {[%clk 0:02:10.2]} 13... dxe4 {[%clk 0:02:54.4]} 14. Nxe4
{[%clk 0:02:09.9]} 14... Nxe4 {[%clk 0:02:53.8]} 15. Bxe4 {[%clk 0:02:09.3]}
15... Nf6 {[%clk 0:02:47.8]} 16. Bf3 {[%clk 0:02:03.3]} 16... Nd5 {[%clk
0:02:47.3]} 17. Qd2 {[%clk 0:02:00.5]} 17... Qh4 {[%clk 0:02:44.5]} 18. Qxa5
{[%clk 0:01:29]} 18... Nxf4 {[%clk 0:02:35.2]} 19. Qb4 {[%clk 0:01:18.6]} 19...
c5 {[%clk 0:02:25.8]} 20. Qxb7 {[%clk 0:01:17.2]} 20... cxd4 {[%clk 0:02:25.5]}
21. Rac1 {[%clk 0:01:09.5]} 21... Qg3 {[%clk 0:02:15.7]} 22. Kh1 {[%clk
0:01:05.7]} 22... Bh6 {[%clk 0:02:11.7]} 23. Bxd4 {[%clk 0:00:56.4]} 23... Nxh3
{[%clk 0:02:11]} 24. gxh3 {[%clk 0:00:46.4]} 24... Bf4 {[%clk 0:02:09.7]} 25.
Bg1 {[%clk 0:00:41.3]} 25... Qxh3+ {[%clk 0:02:08.9]} 0-1

[Event "Late-Titled-Tuesday-Blitz-November-28-2023"]
[Site "Chess.com"]
[Date "2023.11.28"]
[Round "7"]
[White "Byniolus"]
[Black "HalfIsCrayfish"]
[Result "1-0"]
[WhiteElo "2787"]
[BlackElo "2598"]
[TimeControl "180+1"]
[EndTime "15:12:23 PST"]
[Termination "Byniolus won by resignation"]

1. d4 {[%clk 0:02:54.4]} 1... Nf6 {[%clk 0:02:59]} 2. Nf3 {[%clk 0:02:54.7]}
2... g6 {[%clk 0:02:57.5]} 3. Bf4 {[%clk 0:02:55]} 3... Bg7 {[%clk 0:02:56.9]}
4. e3 {[%clk 0:02:55.1]} 4... O-O {[%clk 0:02:57.2]} 5. Be2 {[%clk 0:02:55]}
5... d6 {[%clk 0:02:54.3]} 6. h3 {[%clk 0:02:55.3]} 6... c5 {[%clk 0:02:52.8]}
7. c3 {[%clk 0:02:55.5]} 7... b6 {[%clk 0:02:51.4]} 8. a4 {[%clk 0:02:55]} 8...
a6 {[%clk 0:02:50.6]} 9. O-O {[%clk 0:02:55.3]} 9... Bb7 {[%clk 0:02:50.1]} 10.
Nbd2 {[%clk 0:02:55.1]} 10... Nfd7 {[%clk 0:02:41.2]} 11. Bh2 {[%clk 0:02:52.6]}
11... Nc6 {[%clk 0:02:27]} 12. Re1 {[%clk 0:02:46.7]} 12... Re8 {[%clk
0:02:20.4]} 13. Bg3 {[%clk 0:02:32.7]} 13... Rc8 {[%clk 0:02:02.2]} 14. Bd3
{[%clk 0:02:27.6]} 14... e5 {[%clk 0:01:49.9]} 15. Nc4 {[%clk 0:02:18.9]} 15...
Qc7 {[%clk 0:01:23]} 16. dxe5 {[%clk 0:02:04.3]} 16... Ncxe5 {[%clk 0:01:18.7]}
17. Be2 {[%clk 0:01:54.6]} 17... Bxf3 {[%clk 0:01:00]} 18. gxf3 {[%clk
0:01:53.7]} 18... Nxc4 {[%clk 0:00:46.5]} 19. Bxc4 {[%clk 0:01:54.6]} 19... Ne5
{[%clk 0:00:45.6]} 20. Bxa6 {[%clk 0:01:52.7]} 20... Red8 {[%clk 0:00:32.5]} 21.
Bxc8 {[%clk 0:01:46.3]} 1-0

[Event "Late-Titled-Tuesday-Blitz-November-28-2023"]
[Site "Chess.com"]
[Date "2023.11.28"]
[Round "7"]
[White "Perecke"]
[Black "kingofthenil"]
[Result "0-1"]
[WhiteElo "2499"]
[BlackElo "2697"]
[TimeControl "180+1"]
[EndTime "15:12:51 PST"]
[Termination "kingofthenil won by checkmate"]

1. e4 {[%clk 0:03:00.9]} 1... Nc6 {[%clk 0:02:15.9]} 2. Nf3 {[%clk 0:02:55.8]}
2... d5 {[%clk 0:02:15.8]} 3. exd5 {[%clk 0:02:54.7]} 3... Qxd5 {[%clk
0:02:16.7]} 4. Nc3 {[%clk 0:02:55]} 4... Qh5 {[%clk 0:02:15.3]} 5. Be2 {[%clk
0:02:55]} 5... Bg4 {[%clk 0:02:14.7]} 6. O-O {[%clk 0:02:52.8]} 6... O-O-O
{[%clk 0:02:14.7]} 7. h3 {[%clk 0:02:53.2]} 7... Bxh3 {[%clk 0:02:15.2]} 8. gxh3
{[%clk 0:02:53.6]} 8... Qxh3 {[%clk 0:02:16.1]} 9. Nh2 {[%clk 0:02:50.9]} 9...
e6 {[%clk 0:02:16.4]} 10. d3 {[%clk 0:02:50.4]} 10... Nf6 {[%clk 0:02:15.4]} 11.
Bf4 {[%clk 0:02:46.2]} 11... g5 {[%clk 0:02:15.7]} 12. Bg3 {[%clk 0:02:31.6]}
12... h5 {[%clk 0:02:16.2]} 13. Nb5 {[%clk 0:02:23.1]} 13... a6 {[%clk
0:01:59.9]} 14. a4 {[%clk 0:02:03.8]} 14... h4 {[%clk 0:00:45.3]} 15. Bxc7
{[%clk 0:01:50.2]} 15... axb5 {[%clk 0:00:42]} 16. axb5 {[%clk 0:01:47.7]} 16...
Kxc7 {[%clk 0:00:37.2]} 17. bxc6 {[%clk 0:01:48.1]} 17... Bd6 {[%clk 0:00:37.1]}
18. f4 {[%clk 0:01:48.8]} 18... gxf4 {[%clk 0:00:36.6]} 19. Bf3 {[%clk
0:01:45.1]} 19... Rhg8+ {[%clk 0:00:32.6]} 20. Kh1 {[%clk 0:01:45.2]} 20... Nh5
{[%clk 0:00:32.7]} 21. Bxh5 {[%clk 0:01:19.2]} 21... Qg2# {[%clk 0:00:29.5]} 0-1

[Event "Late-Titled-Tuesday-Blitz-November-28-2023"]
[Site "Chess.com"]
[Date "2023.11.28"]
[Round "7"]
[White "oogee"]
[Black "The_Straightforward_Rook"]
[Result "0-1"]
[WhiteElo "2317"]
[BlackElo "2456"]
[TimeControl "180+1"]
[EndTime "15:13:33 PST"]
[Termination "The_Straightforward_Rook won by resignation"]

1. Nf3 {[%clk 0:03:00.9]} 1... Nf6 {[%clk 0:02:59.5]} 2. c4 {[%clk 0:02:59.2]}
2... e6 {[%clk 0:02:57.9]} 3. Nc3 {[%clk 0:02:58.3]} 3... Bb4 {[%clk 0:02:56]}
4. g3 {[%clk 0:02:53.9]} 4... O-O {[%clk 0:02:53.1]} 5. Bg2 {[%clk 0:02:53.2]}
5... d5 {[%clk 0:02:47.6]} 6. O-O {[%clk 0:02:50.8]} 6... d4 {[%clk 0:02:47.2]}
7. Nb5 {[%clk 0:02:49.1]} 7... Nc6 {[%clk 0:02:40.6]} 8. a3 {[%clk 0:02:48]}
8... Be7 {[%clk 0:02:39.3]} 9. a4 {[%clk 0:02:47.2]} 9... e5 {[%clk 0:02:37.2]}
10. Re1 {[%clk 0:02:41.4]} 10... h6 {[%clk 0:02:29]} 11. e3 {[%clk 0:02:40.2]}
11... d3 {[%clk 0:02:21.6]} 12. Nc3 {[%clk 0:02:32.2]} 12... Nb4 {[%clk
0:02:20.8]} 13. Rf1 {[%clk 0:02:25.2]} 13... Bg4 {[%clk 0:02:15.8]} 14. Qb3
{[%clk 0:02:22.9]} 14... e4 {[%clk 0:02:06.6]} 15. Nd4 {[%clk 0:02:19.2]} 15...
c5 {[%clk 0:02:02]} 16. Ndb5 {[%clk 0:02:17.3]} 16... a6 {[%clk 0:02:01.6]} 17.
Na3 {[%clk 0:02:14.6]} 17... Bf3 {[%clk 0:01:49.3]} 18. Bh3 {[%clk 0:02:07]}
18... Qd6 {[%clk 0:01:39.5]} 19. Re1 {[%clk 0:01:59]} 19... g5 {[%clk
0:01:37.3]} 20. a5 {[%clk 0:01:29.1]} 20... Kg7 {[%clk 0:01:33.3]} 21. Na4
{[%clk 0:01:27.6]} 21... h5 {[%clk 0:01:29]} 22. Nb1 {[%clk 0:01:25.8]} 22... h4
{[%clk 0:01:23.3]} 23. Nb6 {[%clk 0:01:20]} 23... Rad8 {[%clk 0:01:19.6]} 24.
Nc3 {[%clk 0:01:19]} 24... Rh8 {[%clk 0:01:17.8]} 25. Bf1 {[%clk 0:01:12.2]}
25... Nc2 {[%clk 0:01:15.5]} 26. Rd1 {[%clk 0:00:52.2]} 26... Nxa1 {[%clk
0:01:13]} 27. Qa4 {[%clk 0:00:49.3]} 27... Nc2 {[%clk 0:01:09.5]} 28. Nbd5
{[%clk 0:00:43.4]} 28... Nxd5 {[%clk 0:01:04.8]} 29. cxd5 {[%clk 0:00:42.4]}
29... hxg3 {[%clk 0:01:01.4]} 30. fxg3 {[%clk 0:00:41]} 30... Rh6 {[%clk
0:00:59.2]} 0-1

[Event "Late-Titled-Tuesday-Blitz-November-28-2023"]
[Site "Chess.com"]
[Date "2023.11.28"]
[Round "7"]
[White "GlavkonVVS"]
[Black "Sulthankan"]
[Result "1-0"]
[WhiteElo "2503"]
[BlackElo "2379"]
[TimeControl "180+1"]
[EndTime "15:13:36 PST"]
[Termination "GlavkonVVS won by resignation"]

1. c4 {[%clk 0:02:53.9]} 1... e5 {[%clk 0:03:00]} 2. Nc3 {[%clk 0:02:53.3]} 2...
Nf6 {[%clk 0:02:59]} 3. g3 {[%clk 0:02:53.8]} 3... c6 {[%clk 0:02:58.5]} 4. Bg2
{[%clk 0:02:54]} 4... d5 {[%clk 0:02:59.2]} 5. cxd5 {[%clk 0:02:54.4]} 5... cxd5
{[%clk 0:03:00.1]} 6. Qb3 {[%clk 0:02:54.6]} 6... Nc6 {[%clk 0:03:00.2]} 7. Nxd5
{[%clk 0:02:53.9]} 7... Nd4 {[%clk 0:02:59.6]} 8. Nxf6+ {[%clk 0:02:53.7]} 8...
Qxf6 {[%clk 0:02:59.6]} 9. Qd1 {[%clk 0:02:54.6]} 9... Bf5 {[%clk 0:02:59.1]}
10. d3 {[%clk 0:02:55.2]} 10... Bc5 {[%clk 0:02:56.1]} 11. Nf3 {[%clk
0:02:49.5]} 11... Nxf3+ {[%clk 0:02:34]} 12. Bxf3 {[%clk 0:02:48.1]} 12... O-O
{[%clk 0:02:27.3]} 13. O-O {[%clk 0:02:45.8]} 13... Bh3 {[%clk 0:02:27]} 14. Bg2
{[%clk 0:02:45.6]} 14... Bg4 {[%clk 0:02:21.3]} 15. Bxb7 {[%clk 0:02:37.3]}
15... Rab8 {[%clk 0:02:19.8]} 16. Bf3 {[%clk 0:02:33.4]} 16... Bxf3 {[%clk
0:02:12.8]} 17. exf3 {[%clk 0:02:33.2]} 17... Rfd8 {[%clk 0:02:05.8]} 18. Qe2
{[%clk 0:02:33.1]} 18... Bd4 {[%clk 0:02:01.9]} 19. Rb1 {[%clk 0:02:30.5]} 19...
Qa6 {[%clk 0:01:57.3]} 20. b3 {[%clk 0:02:26.3]} 20... Bc3 {[%clk 0:01:38]} 21.
Rd1 {[%clk 0:02:25.6]} 21... Rd5 {[%clk 0:01:32.5]} 22. Qe4 {[%clk 0:02:02.8]}
22... Rbd8 {[%clk 0:01:30.4]} 23. Bg5 {[%clk 0:01:57.5]} 23... f6 {[%clk
0:01:29.8]} 24. Be3 {[%clk 0:01:49.4]} 24... Rxd3 {[%clk 0:01:19]} 25. Rxd3
{[%clk 0:01:48.2]} 25... Rxd3 {[%clk 0:01:19.9]} 26. Bxa7 {[%clk 0:01:26.5]}
26... Rd7 {[%clk 0:00:59.6]} 27. Be3 {[%clk 0:01:19]} 27... Qxa2 {[%clk
0:00:59.4]} 28. Qc4+ {[%clk 0:01:13.4]} 28... Kf8 {[%clk 0:00:58.1]} 29. Rc1
{[%clk 0:01:10.6]} 29... Bd4 {[%clk 0:00:49.7]} 30. Qc8+ {[%clk 0:01:07.6]}
30... Ke7 {[%clk 0:00:49.5]} 31. Bxd4 {[%clk 0:01:06.8]} 31... exd4 {[%clk
0:00:42.8]} 32. Re1+ {[%clk 0:01:06.4]} 32... Kd6 {[%clk 0:00:42.8]} 33. Qc4
{[%clk 0:01:02.8]} 1-0

[Event "Late-Titled-Tuesday-Blitz-November-28-2023"]
[Site "Chess.com"]
[Date "2023.11.28"]
[Round "7"]
[White "FM_Kappeler"]
[Black "Hypercar"]
[Result "0-1"]
[WhiteElo "2332"]
[BlackElo "2527"]
[TimeControl "180+1"]
[EndTime "15:13:53 PST"]
[Termination "Hypercar won on time"]

1. d4 {[%clk 0:03:00.9]} 1... d5 {[%clk 0:02:58.1]} 2. c4 {[%clk 0:03:01]} 2...
Nf6 {[%clk 0:02:58.4]} 3. cxd5 {[%clk 0:03:00.1]} 3... Nxd5 {[%clk 0:02:59.3]}
4. Nf3 {[%clk 0:02:59.7]} 4... Bf5 {[%clk 0:02:58.9]} 5. a3 {[%clk 0:02:41.7]}
5... Nc6 {[%clk 0:02:54.7]} 6. g3 {[%clk 0:02:38.1]} 6... g6 {[%clk 0:02:49.1]}
7. Bg2 {[%clk 0:02:38.4]} 7... Bg7 {[%clk 0:02:48.9]} 8. O-O {[%clk 0:02:38.7]}
8... O-O {[%clk 0:02:49.5]} 9. Re1 {[%clk 0:02:37.8]} 9... Be4 {[%clk
0:02:42.8]} 10. Nbd2 {[%clk 0:02:32.5]} 10... f5 {[%clk 0:02:31.3]} 11. Nxe4
{[%clk 0:02:23.6]} 11... fxe4 {[%clk 0:02:27.5]} 12. Ng5 {[%clk 0:02:23]} 12...
Nxd4 {[%clk 0:02:27.5]} 13. Be3 {[%clk 0:02:00.6]} 13... Nxe3 {[%clk 0:02:22.3]}
14. fxe3 {[%clk 0:02:00.5]} 14... Nf5 {[%clk 0:02:22.7]} 15. Qb3+ {[%clk
0:01:57.3]} 15... Kh8 {[%clk 0:02:21.3]} 16. Ne6 {[%clk 0:01:39.4]} 16... Qd2
{[%clk 0:02:17.8]} 17. Nxf8 {[%clk 0:01:21.5]} 17... Rxf8 {[%clk 0:02:16.4]} 18.
Rad1 {[%clk 0:01:15.8]} 18... Qxe3+ {[%clk 0:02:09.4]} 19. Qxe3 {[%clk
0:01:16.2]} 19... Nxe3 {[%clk 0:02:10.3]} 20. Rd7 {[%clk 0:01:15.2]} 20... c5
{[%clk 0:02:02]} 21. Bxe4 {[%clk 0:00:40.8]} 21... Bxb2 {[%clk 0:01:58.5]} 22.
Rb1 {[%clk 0:00:21.9]} 22... Bd4 {[%clk 0:01:57.6]} 23. Rxe7 {[%clk 0:00:20.3]}
23... Nd5+ {[%clk 0:01:53.1]} 24. Kg2 {[%clk 0:00:17]} 24... Nxe7 {[%clk
0:01:48.8]} 25. Rxb7 {[%clk 0:00:17]} 25... Nf5 {[%clk 0:01:47.8]} 26. Rxa7
{[%clk 0:00:14.5]} 26... Nd6 {[%clk 0:01:45.4]} 27. Bd5 {[%clk 0:00:13.4]} 27...
g5 {[%clk 0:01:41.9]} 28. Rd7 {[%clk 0:00:12.4]} 28... g4 {[%clk 0:01:33]} 29.
h4 {[%clk 0:00:05.5]} 29... Rf2+ {[%clk 0:01:27.2]} 30. Kh1 {[%clk 0:00:05]}
30... Nf5 {[%clk 0:01:27.9]} 31. Rd8+ {[%clk 0:00:01.7]} 31... Kg7 {[%clk
0:01:27.5]} 32. Rg8+ {[%clk 0:00:01.9]} 32... Kf6 {[%clk 0:01:24.4]} 33. Rxg4
{[%clk 0:00:01.8]} 33... h5 {[%clk 0:01:19.7]} 34. Rg5 {[%clk 0:00:01.5]} 34...
Rxe2 {[%clk 0:01:18.2]} 0-1

[Event "Late-Titled-Tuesday-Blitz-November-28-2023"]
[Site "Chess.com"]
[Date "2023.11.28"]
[Round "7"]
[White "OPQRC"]
[Black "PapaieDudu"]
[Result "0-1"]
[WhiteElo "2530"]
[BlackElo "2427"]
[TimeControl "180+1"]
[EndTime "15:13:54 PST"]
[Termination "PapaieDudu won by resignation"]

1. e4 {[%clk 0:02:59.3]} 1... c5 {[%clk 0:03:00]} 2. Nf3 {[%clk 0:02:59.1]} 2...
d6 {[%clk 0:03:00.3]} 3. b4 {[%clk 0:02:55.3]} 3... cxb4 {[%clk 0:03:00.2]} 4.
Bb2 {[%clk 0:02:56.2]} 4... Nf6 {[%clk 0:02:59.7]} 5. Bb5+ {[%clk 0:02:47.6]}
5... Bd7 {[%clk 0:02:57.6]} 6. Qe2 {[%clk 0:02:47.7]} 6... Nc6 {[%clk
0:02:56.6]} 7. O-O {[%clk 0:02:45.5]} 7... e6 {[%clk 0:02:56.5]} 8. d4 {[%clk
0:02:44.4]} 8... d5 {[%clk 0:02:53.5]} 9. Nbd2 {[%clk 0:02:34.8]} 9... dxe4
{[%clk 0:02:52.2]} 10. Nxe4 {[%clk 0:02:35.1]} 10... Nxe4 {[%clk 0:02:52.4]} 11.
Qxe4 {[%clk 0:02:36]} 11... Be7 {[%clk 0:02:52.4]} 12. Bd3 {[%clk 0:02:11.5]}
12... f5 {[%clk 0:02:46.7]} 13. Qf4 {[%clk 0:02:06]} 13... O-O {[%clk
0:02:45.6]} 14. Rfe1 {[%clk 0:02:00.3]} 14... Bf6 {[%clk 0:02:42.9]} 15. Ne5
{[%clk 0:01:52.6]} 15... Ne7 {[%clk 0:02:42.4]} 16. Nxd7 {[%clk 0:01:50.2]}
16... Qxd7 {[%clk 0:02:42.9]} 17. Bc4 {[%clk 0:01:31.8]} 17... Nd5 {[%clk
0:02:40.7]} 18. Qf3 {[%clk 0:01:31.8]} 18... Rad8 {[%clk 0:02:32.7]} 19. Re2
{[%clk 0:01:28.4]} 19... Rfe8 {[%clk 0:02:32.1]} 20. Rae1 {[%clk 0:01:28.3]}
20... Qc6 {[%clk 0:02:31.1]} 21. Bb3 {[%clk 0:01:26.1]} 21... b5 {[%clk
0:02:31.6]} 22. g4 {[%clk 0:01:12.9]} 22... fxg4 {[%clk 0:02:27.9]} 23. Qxg4
{[%clk 0:01:13.8]} 23... Rd6 {[%clk 0:02:23.2]} 24. Qh5 {[%clk 0:00:55.7]} 24...
a5 {[%clk 0:02:07.8]} 25. c4 {[%clk 0:00:41]} 25... Nf4 {[%clk 0:01:52.6]} 26.
Qg4 {[%clk 0:00:40.9]} 26... Nxe2+ {[%clk 0:01:52]} 27. Rxe2 {[%clk 0:00:41.8]}
27... bxc4 {[%clk 0:01:50.8]} 28. Bc2 {[%clk 0:00:41.8]} 28... c3 {[%clk
0:01:48.7]} 29. Be4 {[%clk 0:00:38]} 29... Rxd4 {[%clk 0:01:41.4]} 30. Bc1
{[%clk 0:00:30.5]} 30... Qd7 {[%clk 0:01:36.2]} 31. Bh6 {[%clk 0:00:27.4]} 31...
e5 {[%clk 0:01:35.6]} 32. Qg3 {[%clk 0:00:23.5]} 32... Kh8 {[%clk 0:01:31.3]}
33. Bg5 {[%clk 0:00:16.8]} 33... c2 {[%clk 0:01:17.4]} 34. Qh4 {[%clk
0:00:15.5]} 34... c1=Q+ {[%clk 0:01:15.5]} 35. Bxc1 {[%clk 0:00:14.1]} 35...
Bxh4 {[%clk 0:01:15.8]} 0-1